{"text_format":"1","workbook":"xlsx","n_sheets":21,"sheets":["Сводная","ГАЗ В 363 НО 178","ВАЗ Н 763 ОС 178","УАЗ В 825 СА 178","UAZ Pic У 998 ЕР (1)","UAZ Pic У 999 ЕР (2)","УАЗ  Е 456 МУ ( Б1)","УАЗ  Е 455 МУ ( Б2)","УАЗ  М 219 МУ ( Б3)","УАЗ  М 272 МУ ( Б4)","ПЕЖО У057АХ","Кран КС-5576 К  В 766 ОВ (Ив-ц)","КамАЗ кран-манип.В 254 РМ"," КАМАЗ У 821 АХ (1)"," КАМАЗ У 822 АХ (2)","САТ 432","Комацу","САТ 320","САТ 315","САТ 924","UAZ легк. (3)"],"not_rendered":{"charts":0,"images":0,"macros":0,"external_links":0,"defined_names":1,"comments":0,"pivot_tables":0},"unopened":[],"bounds":{"document_bytes":16777216,"sheet_cells":100000,"rows_first":2000,"rows_last":500,"rows_between":2000,"halvings":0,"cell_chars":16384,"cell_head_chars":4096},"cells_cut":0,"cells_raw":0,"read":"whole","date_system":"1900"}

{"sheet":"Сводная","index":0,"n_rows":68,"n_cols":23,"rows_kept":68,"cut":false,"hidden":false,"merged":[[0,3,0,21]]}
[null,null,null,"А П Р Е Л Ь 2017"]
[null,"Наименование з/ч","Ед.изм.","ГАЗ     В 363 НО 178","ВАЗ   Н 763 ОС 178","УАЗ  В 825 СА 178","UAZ Pic У 998 ЕР (1)","UAZ Pic У 999 ЕР (2)","УАЗ  Е 456 МУ ( Б1)","УАЗ  Е 455 МУ ( Б2)","УАЗ  М 219 МУ ( Б3)","УАЗ  М 272 МУ ( Б4)","ПЕЖО У057АХ","Кран КС-5576 К  В 766 ОВ (Ив-ц)","КамАЗ кран-манип.В 254 РМ"," КАМАЗ У 821 АХ (1)"," КАМАЗ У 822 АХ (2)","САТ 432","Комацу","САТ 320","CAT 315","CAT 924","UAZ Patriot  Х 503 ВР 178 (3)"]
[1,"THKATF III  1л.","шт1",null,null,null,1,1]
[2,"Ароматизатор","шт2",null,null,null,1]
[3,"Вилка редуктора блокировки МКД","шт3",null,null,null,null,null,null,null,null,null,null,null,1]
[4,"Герметик ","шт4",null,null,null,null,null,1,1,1,1]
[5,"Катушка зажигания","шт5",null,null,null,null,1]
[6,"Ключ трубный рычажный","шт6",null,null,null,null,1]
[7,"Кольцо стопорное","шт7",null,null,null,null,null,null,null,null,null,null,null,null,null,null,1]
[8,"Крестовина тяги привода КПП Камаз","шт8",null,null,null,null,null,null,null,null,null,null,null,null,1]
[9,"Лампа 24v   4 w","шт9",null,null,null,null,null,null,null,null,null,null,null,null,2,2]
[10,"Лампа 24v 21 w","шт10",null,null,null,null,null,null,null,null,null,null,null,null,2,2]
[11,"Лампа 24v 70 w","шт11",null,null,null,null,null,null,null,null,null,null,null,null,2,2]
[12,"Масло моторное","шт12",2,1]
[13,"Масло моторное","шт13",null,null,2,2,2,2,2,2,2,2]
[14,"Матрица д/ ножниц по мет.","шт14"]
[15,"Набор инструментов д/грузовиков","шт15",null,null,null,null,null,null,null,null,null,null,null,1]
[16,"Опора стабилизатора","шт16",null,null,null,null,null,null,null,null,null,null,null,null,null,null,1]
[17,"Палец","шт17",null,null,null,null,null,null,null,null,null,null,null,null,null,null,1]
[18,"Рамка фара Камаз","шт18",null,null,null,null,null,null,null,null,null,null,null,null,2,2]
[19,"Ролик натяжной двиг.","шт19",null,null,null,1]
[20,"Салфетки","шт20",null,null,null,1]
[21,"Сопутствующий товар","шт21"]
[22,"Стекло лобовое САТ320","шт22",null,null,null,null,null,null,null,null,null,null,null,null,null,null,null,null,1]
[23,"Стеклоомыватель","шт23",1,1,1]
[24,"Тормозная жидкость 910г","шт24",1,1]
[25,"Тяга","шт25",null,null,null,null,null,null,null,null,null,null,null,null,null,null,null,null,null,2]
[26,"Указатель поворота боковой","шт26",null,null,null,null,null,null,null,null,null,null,null,null,2,2]
[27,"Устройство зарядное ","шт27",1]
[28,"Устройство натяжное","шт28",null,null,null,1]
[29,"Фара ","шт29",null,null,null,null,null,null,null,null,null,null,null,null,2,2]
[30,"Шкив водяного насоса","шт30",null,null,null,1]
[31,"Ремень","шт31",null,null,null,1,1,1,1,1]
[32,"Крестовина рулевая","шт32",null,null,1]
[33,"Механизм натяжения ремня","шт33",null,null,null,1]
[34,"Клипса автомобильная","шт34",null,10]
[35,"Масло гидравлическое","шт35",null,null,null,null,null,null,null,null,null,null,1]
[36,"Рукав высокого давления","шт36",null,null,null,null,null,null,null,null,null,null,null,2,null,null,1]
[37,"Прокладка приемной трубы глушителя","шт37",1]
[38,"Прокладка помпы","шт38",1]
[39,null,"шт39"]
[40,null,"шт40"]
[41,null,"шт41"]
[42,null,"шт42"]
[43,null,"шт43"]
[44,null,"шт44"]
[45,null,"шт45"]
[46,null,"шт46"]
[47,null,"шт47"]
[48,null,"шт48"]
[49,null,"шт49"]
[50,null,"шт50"]
[51,null,"шт51"]
[52,null,"шт52"]
[53,null,"шт53"]
[54,null,"шт54"]
[55,null,"шт55"]
[56,null,"шт56"]
[57,null,"шт57"]
[58,null,"шт58"]
[59,null,"шт59"]
[60,null,"шт60"]
[61,null,"шт61"]
[62,null,"шт62"]
[63,null,"шт63"]
[64,null,"шт64"]
[65,null,"шт65"]
[66,null,"шт66"]

{"sheet":"ГАЗ В 363 НО 178","index":1,"n_rows":22,"n_cols":14,"rows_kept":22,"cut":false,"hidden":false,"merged":[[7,1,7,5],[8,1,8,5]]}
[null,null,null,"Утверждаю:"]
[null,null,null,"Генеральный директор"]
[]
[null,null,null,"_________________    "]
[]
[]
[]
[null,"АКТ о проведении ремонта а/м с  использованием запчастей"]
[null,"за Апрель 2017г."]
[]
[null,null,"ГАЗ-330232 (Газель) В 363НО 178"]
[]
[null,"№","Наименование","Ед.изм.","Кол-во","Причина списания",null,null,null,"№","Наименование","Ед.изм.","Кол-во","Причина списания"]
[null,null,null,null,null,null,null,null,null,1,"Масло моторное","л",2,"Израсходовано"]
[null,null,null,null,null,null,null,null,null,2,"Стеклоомыватель","кан",1,"Израсходовано"]
[null,null,null,null,null,null,null,null,null,3,"Тормозная жидкость 910г","шт",1,"Израсходовано"]
[null,null,null,null,null,null,null,null,null,4,"Устройство зарядное ","шт",1,"Установка"]
[null,null,null,null,null,null,null,null,null,5,"Прокладка приемной трубы глушителя","шт",1,"Замена"]
[null,null,null,null,null,null,null,null,null,6,"Прокладка помпы","шт",1,"Замена"]
[]
[]
[null,null,null,null,null,null,null,null,null,null,"Гл. механик    ________________________  /Иванов А.В./"]

{"sheet":"ВАЗ Н 763 ОС 178","index":2,"n_rows":38,"n_cols":6,"rows_kept":38,"cut":false,"hidden":false,"merged":[[7,1,7,5],[8,1,8,5]]}
[null,"ООО \"ЛЕНРЕМСТРОЙ\"",null,"Утверждаю:"]
[null,null,null,"Генеральный директор"]
[]
[null,null,null,"_________________    Сафронов П.А."]
[]
[]
[]
[null,"АКТ о проведении ремонта а/м с  использованием запчастей"]
[null,{"$f":"\"за \"&TEXT(SUBSTITUTE(Сводная!D1,\" \",),\"ММММ ГГГ\\г.\")","v":"за Апрель 2017г."}]
[]
[null,null,"ВАЗ 21154-40-022 № 5173430  Н 763 ОС 178"]
[]
[null,"№","Наименование","Ед.изм.","Кол-во","Причина списания"]
[null,{"$f":"IF((C14=\"\")+(C13=\"\"),\"\",SUM(B13,1))","v":1},{"$f":"IFERROR(INDEX(Сводная!B$3:B$222,SMALL(IF(INDEX(Сводная!D$3:W$222,,MATCH(MID(CELL(\"имяфайла\",C14),SEARCH(\"]\",CELL(\"имяфайла\",C14))+1,99),TRIM(Сводная!D$2:W$2),)),Сводная!A$3:A$222),ROW(C1))),IF(B11=COUNT(B$13:B13),\"Гл. механик    ________________________  /Иванов А.В./\",\"\"))","v":"Масло моторное"},{"$f":"IF((C14=\"\")+(C13=\"\"),\"\",INDEX(Сводная!C$3:C$222,MATCH(C14,Сводная!B$3:B$222,))&\"\")","v":"шт12"},{"$f":"IF((C14=\"\")+(C13=\"\"),\"\",INDEX(Сводная!D$3:W$222,MATCH(C14,Сводная!B$3:B$222,),MATCH(MID(CELL(\"имяфайла\",C14),SEARCH(\"]\",CELL(\"имяфайла\",C14))+1,99),TRIM(Сводная!D$2:W$2),)))","v":1}]
[null,{"$f":"IF((C15=\"\")+(C14=\"\"),\"\",SUM(B14,1))","v":2},{"$f":"IFERROR(INDEX(Сводная!B$3:B$222,SMALL(IF(INDEX(Сводная!D$3:W$222,,MATCH(MID(CELL(\"имяфайла\",C15),SEARCH(\"]\",CELL(\"имяфайла\",C15))+1,99),TRIM(Сводная!D$2:W$2),)),Сводная!A$3:A$222),ROW(C2))),IF(B12=COUNT(B$13:B14),\"Гл. механик    ________________________  /Иванов А.В./\",\"\"))","v":"Стеклоомыватель"},{"$f":"IF((C15=\"\")+(C14=\"\"),\"\",INDEX(Сводная!C$3:C$222,MATCH(C15,Сводная!B$3:B$222,))&\"\")","v":"шт23"},{"$f":"IF((C15=\"\")+(C14=\"\"),\"\",INDEX(Сводная!D$3:W$222,MATCH(C15,Сводная!B$3:B$222,),MATCH(MID(CELL(\"имяфайла\",C15),SEARCH(\"]\",CELL(\"имяфайла\",C15))+1,99),TRIM(Сводная!D$2:W$2),)))","v":1}]
[null,3,{"$f":"IFERROR(INDEX(Сводная!B$3:B$222,SMALL(IF(INDEX(Сводная!D$3:W$222,,MATCH(MID(CELL(\"имяфайла\",C16),SEARCH(\"]\",CELL(\"имяфайла\",C16))+1,99),TRIM(Сводная!D$2:W$2),)),Сводная!A$3:A$222),ROW(C3))),IF(B13=COUNT(B$13:B15),\"Гл. механик    ________________________  /Иванов А.В./\",\"\"))","v":"Тормозная жидкость 910г"},{"$f":"IF((C16=\"\")+(C15=\"\"),\"\",INDEX(Сводная!C$3:C$222,MATCH(C16,Сводная!B$3:B$222,))&\"\")","v":"шт24"},{"$f":"IF((C16=\"\")+(C15=\"\"),\"\",INDEX(Сводная!D$3:W$222,MATCH(C16,Сводная!B$3:B$222,),MATCH(MID(CELL(\"имяфайла\",C16),SEARCH(\"]\",CELL(\"имяфайла\",C16))+1,99),TRIM(Сводная!D$2:W$2),)))","v":1}]
[null,4,{"$f":"IFERROR(INDEX(Сводная!B$3:B$222,SMALL(IF(INDEX(Сводная!D$3:W$222,,MATCH(MID(CELL(\"имяфайла\",C17),SEARCH(\"]\",CELL(\"имяфайла\",C17))+1,99),TRIM(Сводная!D$2:W$2),)),Сводная!A$3:A$222),ROW(C4))),IF(B14=COUNT(B$13:B16),\"Гл. механик    ________________________  /Иванов А.В./\",\"\"))","v":"Клипса автомобильная"},{"$f":"IF((C17=\"\")+(C16=\"\"),\"\",INDEX(Сводная!C$3:C$222,MATCH(C17,Сводная!B$3:B$222,))&\"\")","v":"шт34"},{"$f":"IF((C17=\"\")+(C16=\"\"),\"\",INDEX(Сводная!D$3:W$222,MATCH(C17,Сводная!B$3:B$222,),MATCH(MID(CELL(\"имяфайла\",C17),SEARCH(\"]\",CELL(\"имяфайла\",C17))+1,99),TRIM(Сводная!D$2:W$2),)))","v":10}]
[null,"",{"$f":"IFERROR(INDEX(Сводная!B$3:B$222,SMALL(IF(INDEX(Сводная!D$3:W$222,,MATCH(MID(CELL(\"имяфайла\",C18),SEARCH(\"]\",CELL(\"имяфайла\",C18))+1,99),TRIM(Сводная!D$2:W$2),)),Сводная!A$3:A$222),ROW(C5))),IF(B15=COUNT(B$13:B17),\"Гл. механик    ________________________  /Иванов А.В./\",\"\"))","v":""},{"$f":"IF((C18=\"\")+(C17=\"\"),\"\",INDEX(Сводная!C$3:C$222,MATCH(C18,Сводная!B$3:B$222,))&\"\")","v":""},{"$f":"IF((C18=\"\")+(C17=\"\"),\"\",INDEX(Сводная!D$3:W$222,MATCH(C18,Сводная!B$3:B$222,),MATCH(MID(CELL(\"имяфайла\",C18),SEARCH(\"]\",CELL(\"имяфайла\",C18))+1,99),TRIM(Сводная!D$2:W$2),)))","v":""}]
[null,"",{"$f":"IFERROR(INDEX(Сводная!B$3:B$222,SMALL(IF(INDEX(Сводная!D$3:W$222,,MATCH(MID(CELL(\"имяфайла\",C19),SEARCH(\"]\",CELL(\"имяфайла\",C19))+1,99),TRIM(Сводная!D$2:W$2),)),Сводная!A$3:A$222),ROW(C6))),IF(B16=COUNT(B$13:B18),\"Гл. механик    ________________________  /Иванов А.В./\",\"\"))","v":""},{"$f":"IF((C19=\"\")+(C18=\"\"),\"\",INDEX(Сводная!C$3:C$222,MATCH(C19,Сводная!B$3:B$222,))&\"\")","v":""},{"$f":"IF((C19=\"\")+(C18=\"\"),\"\",INDEX(Сводная!D$3:W$222,MATCH(C19,Сводная!B$3:B$222,),MATCH(MID(CELL(\"имяфайла\",C19),SEARCH(\"]\",CELL(\"имяфайла\",C19))+1,99),TRIM(Сводная!D$2:W$2),)))","v":""}]
[null,"",{"$f":"IFERROR(INDEX(Сводная!B$3:B$222,SMALL(IF(INDEX(Сводная!D$3:W$222,,MATCH(MID(CELL(\"имяфайла\",C20),SEARCH(\"]\",CELL(\"имяфайла\",C20))+1,99),TRIM(Сводная!D$2:W$2),)),Сводная!A$3:A$222),ROW(C7))),IF(B17=COUNT(B$13:B19),\"Гл. механик    ________________________  /Иванов А.В./\",\"\"))","v":"Гл. механик    ________________________  /Иванов А.В./"},{"$f":"IF((C20=\"\")+(C19=\"\"),\"\",INDEX(Сводная!C$3:C$222,MATCH(C20,Сводная!B$3:B$222,))&\"\")","v":""},{"$f":"IF((C20=\"\")+(C19=\"\"),\"\",INDEX(Сводная!D$3:W$222,MATCH(C20,Сводная!B$3:B$222,),MATCH(MID(CELL(\"имяфайла\",C20),SEARCH(\"]\",CELL(\"имяфайла\",C20))+1,99),TRIM(Сводная!D$2:W$2),)))","v":""}]
[null,"",{"$f":"IFERROR(INDEX(Сводная!B$3:B$222,SMALL(IF(INDEX(Сводная!D$3:W$222,,MATCH(MID(CELL(\"имяфайла\",C21),SEARCH(\"]\",CELL(\"имяфайла\",C21))+1,99),TRIM(Сводная!D$2:W$2),)),Сводная!A$3:A$222),ROW(C8))),IF(B18=COUNT(B$13:B20),\"Гл. механик    ________________________  /Иванов А.В./\",\"\"))","v":""},{"$f":"IF((C21=\"\")+(C20=\"\"),\"\",INDEX(Сводная!C$3:C$222,MATCH(C21,Сводная!B$3:B$222,))&\"\")","v":""},{"$f":"IF((C21=\"\")+(C20=\"\"),\"\",INDEX(Сводная!D$3:W$222,MATCH(C21,Сводная!B$3:B$222,),MATCH(MID(CELL(\"имяфайла\",C21),SEARCH(\"]\",CELL(\"имяфайла\",C21))+1,99),TRIM(Сводная!D$2:W$2),)))","v":""}]
[null,"",{"$f":"IFERROR(INDEX(Сводная!B$3:B$222,SMALL(IF(INDEX(Сводная!D$3:W$222,,MATCH(MID(CELL(\"имяфайла\",C22),SEARCH(\"]\",CELL(\"имяфайла\",C22))+1,99),TRIM(Сводная!D$2:W$2),)),Сводная!A$3:A$222),ROW(C9))),IF(B19=COUNT(B$13:B21),\"Гл. механик    ________________________  /Иванов А.В./\",\"\"))","v":""},{"$f":"IF((C22=\"\")+(C21=\"\"),\"\",INDEX(Сводная!C$3:C$222,MATCH(C22,Сводная!B$3:B$222,))&\"\")","v":""},{"$f":"IF((C22=\"\")+(C21=\"\"),\"\",INDEX(Сводная!D$3:W$222,MATCH(C22,Сводная!B$3:B$222,),MATCH(MID(CELL(\"имяфайла\",C22),SEARCH(\"]\",CELL(\"имяфайла\",C22))+1,99),TRIM(Сводная!D$2:W$2),)))","v":""}]
[null,"",{"$f":"IFERROR(INDEX(Сводная!B$3:B$222,SMALL(IF(INDEX(Сводная!D$3:W$222,,MATCH(MID(CELL(\"имяфайла\",C23),SEARCH(\"]\",CELL(\"имяфайла\",C23))+1,99),TRIM(Сводная!D$2:W$2),)),Сводная!A$3:A$222),ROW(C10))),IF(B20=COUNT(B$13:B22),\"Гл. механик    ________________________  /Иванов А.В./\",\"\"))","v":""},{"$f":"IF((C23=\"\")+(C22=\"\"),\"\",INDEX(Сводная!C$3:C$222,MATCH(C23,Сводная!B$3:B$222,))&\"\")","v":""},{"$f":"IF((C23=\"\")+(C22=\"\"),\"\",INDEX(Сводная!D$3:W$222,MATCH(C23,Сводная!B$3:B$222,),MATCH(MID(CELL(\"имяфайла\",C23),SEARCH(\"]\",CELL(\"имяфайла\",C23))+1,99),TRIM(Сводная!D$2:W$2),)))","v":""}]
[null,"",{"$f":"IFERROR(INDEX(Сводная!B$3:B$222,SMALL(IF(INDEX(Сводная!D$3:W$222,,MATCH(MID(CELL(\"имяфайла\",C24),SEARCH(\"]\",CELL(\"имяфайла\",C24))+1,99),TRIM(Сводная!D$2:W$2),)),Сводная!A$3:A$222),ROW(C11))),IF(B21=COUNT(B$13:B23),\"Гл. механик    ________________________  /Иванов А.В./\",\"\"))","v":""},{"$f":"IF((C24=\"\")+(C23=\"\"),\"\",INDEX(Сводная!C$3:C$222,MATCH(C24,Сводная!B$3:B$222,))&\"\")","v":""},{"$f":"IF((C24=\"\")+(C23=\"\"),\"\",INDEX(Сводная!D$3:W$222,MATCH(C24,Сводная!B$3:B$222,),MATCH(MID(CELL(\"имяфайла\",C24),SEARCH(\"]\",CELL(\"имяфайла\",C24))+1,99),TRIM(Сводная!D$2:W$2),)))","v":""}]
[null,"",{"$f":"IFERROR(INDEX(Сводная!B$3:B$222,SMALL(IF(INDEX(Сводная!D$3:W$222,,MATCH(MID(CELL(\"имяфайла\",C25),SEARCH(\"]\",CELL(\"имяфайла\",C25))+1,99),TRIM(Сводная!D$2:W$2),)),Сводная!A$3:A$222),ROW(C12))),IF(B22=COUNT(B$13:B24),\"Гл. механик    ________________________  /Иванов А.В./\",\"\"))","v":""},{"$f":"IF((C25=\"\")+(C24=\"\"),\"\",INDEX(Сводная!C$3:C$222,MATCH(C25,Сводная!B$3:B$222,))&\"\")","v":""},{"$f":"IF((C25=\"\")+(C24=\"\"),\"\",INDEX(Сводная!D$3:W$222,MATCH(C25,Сводная!B$3:B$222,),MATCH(MID(CELL(\"имяфайла\",C25),SEARCH(\"]\",CELL(\"имяфайла\",C25))+1,99),TRIM(Сводная!D$2:W$2),)))","v":""}]
[null,"",{"$f":"IFERROR(INDEX(Сводная!B$3:B$222,SMALL(IF(INDEX(Сводная!D$3:W$222,,MATCH(MID(CELL(\"имяфайла\",C26),SEARCH(\"]\",CELL(\"имяфайла\",C26))+1,99),TRIM(Сводная!D$2:W$2),)),Сводная!A$3:A$222),ROW(C13))),IF(B23=COUNT(B$13:B25),\"Гл. механик    ________________________  /Иванов А.В./\",\"\"))","v":""},{"$f":"IF((C26=\"\")+(C25=\"\"),\"\",INDEX(Сводная!C$3:C$222,MATCH(C26,Сводная!B$3:B$222,))&\"\")","v":""},{"$f":"IF((C26=\"\")+(C25=\"\"),\"\",INDEX(Сводная!D$3:W$222,MATCH(C26,Сводная!B$3:B$222,),MATCH(MID(CELL(\"имяфайла\",C26),SEARCH(\"]\",CELL(\"имяфайла\",C26))+1,99),TRIM(Сводная!D$2:W$2),)))","v":""}]
[null,"",{"$f":"IFERROR(INDEX(Сводная!B$3:B$222,SMALL(IF(INDEX(Сводная!D$3:W$222,,MATCH(MID(CELL(\"имяфайла\",C27),SEARCH(\"]\",CELL(\"имяфайла\",C27))+1,99),TRIM(Сводная!D$2:W$2),)),Сводная!A$3:A$222),ROW(C14))),IF(B24=COUNT(B$13:B26),\"Гл. механик    ________________________  /Иванов А.В./\",\"\"))","v":""},{"$f":"IF((C27=\"\")+(C26=\"\"),\"\",INDEX(Сводная!C$3:C$222,MATCH(C27,Сводная!B$3:B$222,))&\"\")","v":""},{"$f":"IF((C27=\"\")+(C26=\"\"),\"\",INDEX(Сводная!D$3:W$222,MATCH(C27,Сводная!B$3:B$222,),MATCH(MID(CELL(\"имяфайла\",C27),SEARCH(\"]\",CELL(\"имяфайла\",C27))+1,99),TRIM(Сводная!D$2:W$2),)))","v":""}]
[null,"",{"$f":"IFERROR(INDEX(Сводная!B$3:B$222,SMALL(IF(INDEX(Сводная!D$3:W$222,,MATCH(MID(CELL(\"имяфайла\",C28),SEARCH(\"]\",CELL(\"имяфайла\",C28))+1,99),TRIM(Сводная!D$2:W$2),)),Сводная!A$3:A$222),ROW(C15))),IF(B25=COUNT(B$13:B27),\"Гл. механик    ________________________  /Иванов А.В./\",\"\"))","v":""},{"$f":"IF((C28=\"\")+(C27=\"\"),\"\",INDEX(Сводная!C$3:C$222,MATCH(C28,Сводная!B$3:B$222,))&\"\")","v":""},{"$f":"IF((C28=\"\")+(C27=\"\"),\"\",INDEX(Сводная!D$3:W$222,MATCH(C28,Сводная!B$3:B$222,),MATCH(MID(CELL(\"имяфайла\",C28),SEARCH(\"]\",CELL(\"имяфайла\",C28))+1,99),TRIM(Сводная!D$2:W$2),)))","v":""}]
[null,"",{"$f":"IFERROR(INDEX(Сводная!B$3:B$222,SMALL(IF(INDEX(Сводная!D$3:W$222,,MATCH(MID(CELL(\"имяфайла\",C29),SEARCH(\"]\",CELL(\"имяфайла\",C29))+1,99),TRIM(Сводная!D$2:W$2),)),Сводная!A$3:A$222),ROW(C16))),IF(B26=COUNT(B$13:B28),\"Гл. механик    ________________________  /Иванов А.В./\",\"\"))","v":""},{"$f":"IF((C29=\"\")+(C28=\"\"),\"\",INDEX(Сводная!C$3:C$222,MATCH(C29,Сводная!B$3:B$222,))&\"\")","v":""},{"$f":"IF((C29=\"\")+(C28=\"\"),\"\",INDEX(Сводная!D$3:W$222,MATCH(C29,Сводная!B$3:B$222,),MATCH(MID(CELL(\"имяфайла\",C29),SEARCH(\"]\",CELL(\"имяфайла\",C29))+1,99),TRIM(Сводная!D$2:W$2),)))","v":""}]
[null,"",{"$f":"IFERROR(INDEX(Сводная!B$3:B$222,SMALL(IF(INDEX(Сводная!D$3:W$222,,MATCH(MID(CELL(\"имяфайла\",C30),SEARCH(\"]\",CELL(\"имяфайла\",C30))+1,99),TRIM(Сводная!D$2:W$2),)),Сводная!A$3:A$222),ROW(C17))),IF(B27=COUNT(B$13:B29),\"Гл. механик    ________________________  /Иванов А.В./\",\"\"))","v":""},{"$f":"IF((C30=\"\")+(C29=\"\"),\"\",INDEX(Сводная!C$3:C$222,MATCH(C30,Сводная!B$3:B$222,))&\"\")","v":""},{"$f":"IF((C30=\"\")+(C29=\"\"),\"\",INDEX(Сводная!D$3:W$222,MATCH(C30,Сводная!B$3:B$222,),MATCH(MID(CELL(\"имяфайла\",C30),SEARCH(\"]\",CELL(\"имяфайла\",C30))+1,99),TRIM(Сводная!D$2:W$2),)))","v":""}]
[null,"",{"$f":"IFERROR(INDEX(Сводная!B$3:B$222,SMALL(IF(INDEX(Сводная!D$3:W$222,,MATCH(MID(CELL(\"имяфайла\",C31),SEARCH(\"]\",CELL(\"имяфайла\",C31))+1,99),TRIM(Сводная!D$2:W$2),)),Сводная!A$3:A$222),ROW(C18))),IF(B28=COUNT(B$13:B30),\"Гл. механик    ________________________  /Иванов А.В./\",\"\"))","v":""},{"$f":"IF((C31=\"\")+(C30=\"\"),\"\",INDEX(Сводная!C$3:C$222,MATCH(C31,Сводная!B$3:B$222,))&\"\")","v":""},{"$f":"IF((C31=\"\")+(C30=\"\"),\"\",INDEX(Сводная!D$3:W$222,MATCH(C31,Сводная!B$3:B$222,),MATCH(MID(CELL(\"имяфайла\",C31),SEARCH(\"]\",CELL(\"имяфайла\",C31))+1,99),TRIM(Сводная!D$2:W$2),)))","v":""}]
[null,"",{"$f":"IFERROR(INDEX(Сводная!B$3:B$222,SMALL(IF(INDEX(Сводная!D$3:W$222,,MATCH(MID(CELL(\"имяфайла\",C32),SEARCH(\"]\",CELL(\"имяфайла\",C32))+1,99),TRIM(Сводная!D$2:W$2),)),Сводная!A$3:A$222),ROW(C19))),IF(B29=COUNT(B$13:B31),\"Гл. механик    ________________________  /Иванов А.В./\",\"\"))","v":""},{"$f":"IF((C32=\"\")+(C31=\"\"),\"\",INDEX(Сводная!C$3:C$222,MATCH(C32,Сводная!B$3:B$222,))&\"\")","v":""},{"$f":"IF((C32=\"\")+(C31=\"\"),\"\",INDEX(Сводная!D$3:W$222,MATCH(C32,Сводная!B$3:B$222,),MATCH(MID(CELL(\"имяфайла\",C32),SEARCH(\"]\",CELL(\"имяфайла\",C32))+1,99),TRIM(Сводная!D$2:W$2),)))","v":""}]
[null,"",{"$f":"IFERROR(INDEX(Сводная!B$3:B$222,SMALL(IF(INDEX(Сводная!D$3:W$222,,MATCH(MID(CELL(\"имяфайла\",C33),SEARCH(\"]\",CELL(\"имяфайла\",C33))+1,99),TRIM(Сводная!D$2:W$2),)),Сводная!A$3:A$222),ROW(C20))),IF(B30=COUNT(B$13:B32),\"Гл. механик    ________________________  /Иванов А.В./\",\"\"))","v":""},{"$f":"IF((C33=\"\")+(C32=\"\"),\"\",INDEX(Сводная!C$3:C$222,MATCH(C33,Сводная!B$3:B$222,))&\"\")","v":""},{"$f":"IF((C33=\"\")+(C32=\"\"),\"\",INDEX(Сводная!D$3:W$222,MATCH(C33,Сводная!B$3:B$222,),MATCH(MID(CELL(\"имяфайла\",C33),SEARCH(\"]\",CELL(\"имяфайла\",C33))+1,99),TRIM(Сводная!D$2:W$2),)))","v":""}]
[null,"",{"$f":"IFERROR(INDEX(Сводная!B$3:B$222,SMALL(IF(INDEX(Сводная!D$3:W$222,,MATCH(MID(CELL(\"имяфайла\",C34),SEARCH(\"]\",CELL(\"имяфайла\",C34))+1,99),TRIM(Сводная!D$2:W$2),)),Сводная!A$3:A$222),ROW(C21))),IF(B31=COUNT(B$13:B33),\"Гл. механик    ________________________  /Иванов А.В./\",\"\"))","v":""},{"$f":"IF((C34=\"\")+(C33=\"\"),\"\",INDEX(Сводная!C$3:C$222,MATCH(C34,Сводная!B$3:B$222,))&\"\")","v":""},{"$f":"IF((C34=\"\")+(C33=\"\"),\"\",INDEX(Сводная!D$3:W$222,MATCH(C34,Сводная!B$3:B$222,),MATCH(MID(CELL(\"имяфайла\",C34),SEARCH(\"]\",CELL(\"имяфайла\",C34))+1,99),TRIM(Сводная!D$2:W$2),)))","v":""}]
[null,"",{"$f":"IFERROR(INDEX(Сводная!B$3:B$222,SMALL(IF(INDEX(Сводная!D$3:W$222,,MATCH(MID(CELL(\"имяфайла\",C35),SEARCH(\"]\",CELL(\"имяфайла\",C35))+1,99),TRIM(Сводная!D$2:W$2),)),Сводная!A$3:A$222),ROW(C22))),IF(B32=COUNT(B$13:B34),\"Гл. механик    ________________________  /Иванов А.В./\",\"\"))","v":""},{"$f":"IF((C35=\"\")+(C34=\"\"),\"\",INDEX(Сводная!C$3:C$222,MATCH(C35,Сводная!B$3:B$222,))&\"\")","v":""},{"$f":"IF((C35=\"\")+(C34=\"\"),\"\",INDEX(Сводная!D$3:W$222,MATCH(C35,Сводная!B$3:B$222,),MATCH(MID(CELL(\"имяфайла\",C35),SEARCH(\"]\",CELL(\"имяфайла\",C35))+1,99),TRIM(Сводная!D$2:W$2),)))","v":""}]
[null,"",{"$f":"IFERROR(INDEX(Сводная!B$3:B$222,SMALL(IF(INDEX(Сводная!D$3:W$222,,MATCH(MID(CELL(\"имяфайла\",C36),SEARCH(\"]\",CELL(\"имяфайла\",C36))+1,99),TRIM(Сводная!D$2:W$2),)),Сводная!A$3:A$222),ROW(C23))),IF(B33=COUNT(B$13:B35),\"Гл. механик    ________________________  /Иванов А.В./\",\"\"))","v":""},{"$f":"IF((C36=\"\")+(C35=\"\"),\"\",INDEX(Сводная!C$3:C$222,MATCH(C36,Сводная!B$3:B$222,))&\"\")","v":""},{"$f":"IF((C36=\"\")+(C35=\"\"),\"\",INDEX(Сводная!D$3:W$222,MATCH(C36,Сводная!B$3:B$222,),MATCH(MID(CELL(\"имяфайла\",C36),SEARCH(\"]\",CELL(\"имяфайла\",C36))+1,99),TRIM(Сводная!D$2:W$2),)))","v":""}]
[null,"",{"$f":"IFERROR(INDEX(Сводная!B$3:B$222,SMALL(IF(INDEX(Сводная!D$3:W$222,,MATCH(MID(CELL(\"имяфайла\",C37),SEARCH(\"]\",CELL(\"имяфайла\",C37))+1,99),TRIM(Сводная!D$2:W$2),)),Сводная!A$3:A$222),ROW(C24))),IF(B34=COUNT(B$13:B36),\"Гл. механик    ________________________  /Иванов А.В./\",\"\"))","v":""},{"$f":"IF((C37=\"\")+(C36=\"\"),\"\",INDEX(Сводная!C$3:C$222,MATCH(C37,Сводная!B$3:B$222,))&\"\")","v":""},{"$f":"IF((C37=\"\")+(C36=\"\"),\"\",INDEX(Сводная!D$3:W$222,MATCH(C37,Сводная!B$3:B$222,),MATCH(MID(CELL(\"имяфайла\",C37),SEARCH(\"]\",CELL(\"имяфайла\",C37))+1,99),TRIM(Сводная!D$2:W$2),)))","v":""}]
[null,"",{"$f":"IFERROR(INDEX(Сводная!B$3:B$222,SMALL(IF(INDEX(Сводная!D$3:W$222,,MATCH(MID(CELL(\"имяфайла\",C38),SEARCH(\"]\",CELL(\"имяфайла\",C38))+1,99),TRIM(Сводная!D$2:W$2),)),Сводная!A$3:A$222),ROW(C25))),IF(B35=COUNT(B$13:B37),\"Гл. механик    ________________________  /Иванов А.В./\",\"\"))","v":""},{"$f":"IF((C38=\"\")+(C37=\"\"),\"\",INDEX(Сводная!C$3:C$222,MATCH(C38,Сводная!B$3:B$222,))&\"\")","v":""},{"$f":"IF((C38=\"\")+(C37=\"\"),\"\",INDEX(Сводная!D$3:W$222,MATCH(C38,Сводная!B$3:B$222,),MATCH(MID(CELL(\"имяфайла\",C38),SEARCH(\"]\",CELL(\"имяфайла\",C38))+1,99),TRIM(Сводная!D$2:W$2),)))","v":""}]

{"sheet":"УАЗ В 825 СА 178","index":3,"n_rows":19,"n_cols":6,"rows_kept":19,"cut":false,"hidden":false,"merged":[[7,1,7,5],[8,1,8,5]]}
[null,"ООО \"ЛЕНРЕМСТРОЙ\"",null,"Утверждаю:"]
[null,null,null,"Генеральный директор"]
[]
[null,null,null,"_________________    Сафронов П.А."]
[]
[]
[]
[null,"АКТ о проведении ремонта а/м с  использованием запчастей"]
[null,"за Апрель 2017г."]
[]
[null,null,"УАЗ-396255  В 825 СА 178"]
[]
[null,"№","Наименование","Ед.изм.","Кол-во","Причина списания"]
[null,1,"Масло моторное","л",2,"Израсходовано"]
[null,2,"Стеклоомыватель","кан",1,"Израсходовано"]
[null,3,"Крестовина рулевая","шт",1,"Замена"]
[]
[]
[null,null,"Гл. механик    ________________________  /Иванов А.В./"]

{"sheet":"UAZ Pic У 998 ЕР (1)","index":4,"n_rows":25,"n_cols":6,"rows_kept":25,"cut":false,"hidden":false,"merged":[[7,1,7,5],[8,1,8,5]]}
[null,"ООО \"ЛЕНРЕМСТРОЙ\"",null,"Утверждаю:"]
[null,null,null,"Генеральный директор"]
[]
[null,null,null,"_________________    Сафронов П.А."]
[]
[]
[]
[null,"АКТ о проведении ремонта а/м с  использованием запчастей"]
[null,"за Апрель 2017г."]
[]
[null,null,"UAZ Pickup 2363 Груз.(1)  У 998 ЕР 178"]
[]
[null,"№","Наименование","Ед.изм.","Кол-во","Причина списания"]
[null,1,"THKATF III  1л.","шт",1,"Израсходовано"]
[null,2,"Ароматизатор","шт",1,"Установка"]
[null,3,"Масло моторное","л",2,"Израсходовано"]
[null,4,"Ролик натяжной двиг.","шт",1,"Замена"]
[null,5,"Салфетки","пач",1,"Установка"]
[null,6,"Устройство натяжное","шт",1,"Замена"]
[null,7,"Шкив водяного насоса","шт",1,"Замена"]
[null,8,"Ремень","шт",1,"Замена"]
[null,9,"Механизм натяжения ремня","шт",1,"Замена"]
[]
[]
[null,null,"Гл. механик    ________________________  /Иванов А.В./"]

{"sheet":"UAZ Pic У 999 ЕР (2)","index":5,"n_rows":21,"n_cols":6,"rows_kept":21,"cut":false,"hidden":false,"merged":[[7,1,7,5],[8,1,8,5]]}
[null,"ООО \"ЛЕНРЕМСТРОЙ\"",null,"Утверждаю:"]
[null,null,null,"Генеральный директор"]
[]
[null,null,null,"_________________    Сафронов П.А."]
[]
[]
[]
[null,"АКТ о проведении ремонта а/м с  использованием запчастей"]
[null,"за Апрель 2017г."]
[]
[null,null,"UAZ Pickup 2363 Груз.(2)  У 999 ЕР 178"]
[]
[null,"№","Наименование","Ед.изм.","Кол-во","Причина списания"]
[null,1,"THKATF III  1л.","шт",1,"Израсходовано"]
[null,2,"Катушка зажигания","шт",1,"Замена"]
[null,3,"Ключ трубный рычажный","шт",1,"Установка"]
[null,4,"Масло моторное","л",2,"Израсходовано"]
[null,5,"Ремень","шт",1,"Замена"]
[]
[]
[null,null,"Гл. механик    ________________________  /Иванов А.В./"]

{"sheet":"УАЗ  Е 456 МУ ( Б1)","index":6,"n_rows":19,"n_cols":6,"rows_kept":19,"cut":false,"hidden":false,"merged":[[7,1,7,5],[8,1,8,5]]}
[null,"ООО \"ЛЕНРЕМСТРОЙ\"",null,"Утверждаю:"]
[null,null,null,"Генеральный директор"]
[]
[null,null,null,"_________________    Сафронов П.А."]
[]
[]
[]
[null,"АКТ о проведении ремонта а/м с  использованием запчастей"]
[null,"за Апрель 2017г."]
[]
[null,null,"УАЗ 29891 Спец.пасс. Б1  Е 456 МУ 51"]
[]
[null,"№","Наименование","Ед.изм.","Кол-во","Причина списания"]
[null,1,"Герметик ","шт",1,"Израсходовано"]
[null,2,"Масло моторное","л",2,"Израсходовано"]
[null,3,"Ремень","шт",1,"Замена"]
[]
[]
[null,null,"Гл. механик    ________________________  /Иванов А.В./"]

{"sheet":"УАЗ  Е 455 МУ ( Б2)","index":7,"n_rows":19,"n_cols":6,"rows_kept":19,"cut":false,"hidden":false,"merged":[[7,1,7,5],[8,1,8,5]]}
[null,"ООО \"ЛЕНРЕМСТРОЙ\"",null,"Утверждаю:"]
[null,null,null,"Генеральный директор"]
[]
[null,null,null,"_________________    Сафронов П.А."]
[]
[]
[]
[null,"АКТ о проведении ремонта а/м с  использованием запчастей"]
[null,"за Апрель 2017г."]
[]
[null,null,"УАЗ 29891 Спец.пасс. Б2 Е 455 МУ 51"]
[]
[null,"№","Наименование","Ед.изм.","Кол-во","Причина списания"]
[null,1,"Герметик ","шт",1,"Израсходовано"]
[null,2,"Масло моторное","л",2,"Израсходовано"]
[null,3,"Ремень","шт",1,"Замена"]
[]
[]
[null,null,"Гл. механик    ________________________  /Иванов А.В./"]

{"sheet":"УАЗ  М 219 МУ ( Б3)","index":8,"n_rows":19,"n_cols":6,"rows_kept":19,"cut":false,"hidden":false,"merged":[[7,1,7,5],[8,1,8,5]]}
[null,"ООО \"ЛЕНРЕМСТРОЙ\"",null,"Утверждаю:"]
[null,null,null,"Генеральный директор"]
[]
[null,null,null,"_________________    Сафронов П.А."]
[]
[]
[]
[null,"АКТ о проведении ремонта а/м с  использованием запчастей"]
[null,"за Апрель 2017г."]
[]
[null,null,"УАЗ 374195-05 Груз.ф Б3  М 219 МУ 51"]
[]
[null,"№","Наименование","Ед.изм.","Кол-во","Причина списания"]
[null,1,"Герметик ","шт",1,"Израсходовано"]
[null,2,"Масло моторное","л",2,"Израсходовано"]
[null,3,"Ремень","шт",1,"Замена"]
[]
[]
[null,null,"Гл. механик    ________________________  /Иванов А.В./"]

{"sheet":"УАЗ  М 272 МУ ( Б4)","index":9,"n_rows":18,"n_cols":6,"rows_kept":18,"cut":false,"hidden":false,"merged":[[7,1,7,5],[8,1,8,5]]}
[null,"ООО \"ЛЕНРЕМСТРОЙ\"",null,"Утверждаю:"]
[null,null,null,"Генеральный директор"]
[]
[null,null,null,"_________________    Сафронов П.А."]
[]
[]
[]
[null,"АКТ о проведении ремонта а/м с  использованием запчастей"]
[null,"за Апрель 2017г."]
[]
[null,null,"УАЗ 374195-05 Груз.ф Б4  М 272 МУ 51"]
[]
[null,"№","Наименование","Ед.изм.","Кол-во","Причина списания"]
[null,1,"Герметик ","шт",1,"Израсходовано"]
[null,2,"Масло моторное","л",2,"Израсходовано"]
[]
[]
[null,null,"Гл. механик    ________________________  /Иванов А.В./"]

{"sheet":"ПЕЖО У057АХ","index":10,"n_rows":17,"n_cols":6,"rows_kept":17,"cut":false,"hidden":false,"merged":[[7,1,7,5],[8,1,8,5]]}
[null,"ООО \"ЛЕНРЕМСТРОЙ\"",null,"Утверждаю:"]
[null,null,null,"Генеральный директор"]
[]
[null,null,null,"_________________    Сафронов П.А."]
[]
[]
[]
[null,"АКТ о проведении ремонта а/м с  использованием запчастей"]
[null,"за Апрель 2017г."]
[]
[null,null,"ПЕЖО PEUGEOT PARTNER (грузовой-фургон) У057АХ178 (дизель)"]
[]
[null,"№","Наименование","Ед.изм.","Кол-во","Причина списания"]
[null,1,"Масло моторное","л",2,"Израсходовано"]
[]
[]
[null,null,"Гл. механик    ________________________  /Иванов А.В./"]

{"sheet":"Кран КС-5576 К  В 766 ОВ (Ив-ц)","index":11,"n_rows":17,"n_cols":6,"rows_kept":17,"cut":false,"hidden":false,"merged":[[7,1,7,5],[8,1,8,5]]}
[null,"ООО \"ЛЕНРЕМСТРОЙ\"",null,"Утверждаю:"]
[null,null,null,"Генеральный директор"]
[]
[null,null,null,"_________________    Сафронов П.А."]
[]
[]
[]
[null,"АКТ о проведении ремонта а/м с  использованием запчастей"]
[null,"за Апрель 2017г."]
[]
[null,null,"Кран автомобильный КС-5576 К  В 766 ОВ 178 (Ивановец)"]
[]
[null,"№","Наименование","Ед.изм.","Кол-во","Причина списания"]
[null,1,"Масло гидравлическое","л",1,"Израсходовано"]
[]
[]
[null,null,"Гл. механик    ________________________  /Иванов А.В./"]

{"sheet":"КамАЗ кран-манип.В 254 РМ","index":12,"n_rows":19,"n_cols":6,"rows_kept":19,"cut":false,"hidden":false,"merged":[[7,1,7,5],[8,1,8,5],[10,2,10,4]]}
[null,"ООО \"ЛЕНРЕМСТРОЙ\"",null,"Утверждаю:"]
[null,null,null,"Генеральный директор"]
[]
[null,null,null,"_________________    Сафронов П.А."]
[]
[]
[]
[null,"АКТ о проведении ремонта а/м с  использованием запчастей"]
[null,"за Апрель 2017г."]
[]
[null,null,"КамАЗ-65117-3010-78 с КМУ с КМУ Kanlim KS1256G-II (Автокран - манипулятор - 637433) В 254 РМ 178"]
[]
[null,"№","Наименование","Ед.изм.","Кол-во","Причина списания"]
[null,1,"Вилка редуктора блокировки МКД","шт",1,"Замена"]
[null,2,"Набор инструментов д/грузовиков","шт",1,"Установка"]
[null,3,"Рукав высокого давления","шт",2,"Замена"]
[]
[]
[null,null,"Гл. механик    ________________________  /Иванов А.В./"]

{"sheet":" КАМАЗ У 821 АХ (1)","index":13,"n_rows":23,"n_cols":6,"rows_kept":23,"cut":false,"hidden":false,"merged":[[7,1,7,5],[8,1,8,5]]}
[null,"ООО \"ЛЕНРЕМСТРОЙ\"",null,"Утверждаю:"]
[null,null,null,"Генеральный директор"]
[]
[null,null,null,"_________________    Сафронов П.А."]
[]
[]
[]
[null,"АКТ о проведении ремонта а/м с  использованием запчастей"]
[null,"за Апрель 2017г."]
[]
[null,null,"Самосвал  (1) КАМАЗ 6520-43    У 821 АХ 178"]
[]
[null,"№","Наименование","Ед.изм.","Кол-во","Причина списания"]
[null,1,"Крестовина тяги привода КПП Камаз","шт",1,"Замена"]
[null,2,"Лампа 24v   4 w","шт",2,"Замена"]
[null,3,"Лампа 24v 21 w","шт",2,"Замена"]
[null,4,"Лампа 24v 70 w","шт",2,"Замена"]
[null,5,"Рамка фара Камаз","шт",2,"Замена"]
[null,6,"Указатель поворота боковой","шт",2,"Замена"]
[null,7,"Фара ","шт",2,"Замена"]
[]
[]
[null,null,"Гл. механик    ________________________  /Иванов А.В./"]

{"sheet":" КАМАЗ У 822 АХ (2)","index":14,"n_rows":22,"n_cols":6,"rows_kept":22,"cut":false,"hidden":false,"merged":[[7,1,7,5],[8,1,8,5]]}
[null,"ООО \"ЛЕНРЕМСТРОЙ\"",null,"Утверждаю:"]
[null,null,null,"Генеральный директор"]
[]
[null,null,null,"_________________    Сафронов П.А."]
[]
[]
[]
[null,"АКТ о проведении ремонта а/м с  использованием запчастей"]
[null,"за Апрель 2017г."]
[]
[null,null,"Самосвал  (2) КАМАЗ 6520-43    У 822 АХ 178"]
[]
[null,"№","Наименование","Ед.изм.","Кол-во","Причина списания"]
[null,1,"Лампа 24v   4 w","шт",2,"Замена"]
[null,2,"Лампа 24v 21 w","шт",2,"Замена"]
[null,3,"Лампа 24v 70 w","шт",2,"Замена"]
[null,4,"Рамка фара Камаз","шт",2,"Замена"]
[null,5,"Указатель поворота боковой","шт",2,"Замена"]
[null,6,"Фара ","шт",2,"Замена"]
[]
[]
[null,null,"Гл. механик    ________________________  /Иванов А.В./"]

{"sheet":"САТ 432","index":15,"n_rows":20,"n_cols":6,"rows_kept":20,"cut":false,"hidden":false,"merged":[[7,1,7,5],[8,1,8,5]]}
[null,"ООО \"ЛЕНРЕМСТРОЙ\"",null,"Утверждаю:"]
[null,null,null,"Генеральный директор"]
[]
[null,null,null,"_________________    Сафронов П.А."]
[]
[]
[]
[null,"АКТ о проведении ремонта а/м с  использованием запчастей"]
[null,"за Апрель 2017г."]
[]
[null,null,"Эскаватор-Погрузчик САТ 432 F (ДТ)"]
[]
[null,"№","Наименование","Ед.изм.","Кол-во","Причина списания"]
[null,1,"Кольцо стопорное","шт",1,"Замена"]
[null,2,"Опора стабилизатора","шт",1,"Замена"]
[null,3,"Палец","шт",1,"Замена"]
[null,4,"Рукав высокого давления","шт",1,"Замена"]
[]
[]
[null,null,"Гл. механик    ________________________  /Иванов А.В./"]

{"sheet":"Комацу","index":16,"n_rows":21,"n_cols":6,"rows_kept":21,"cut":false,"hidden":false,"merged":[[7,1,7,5],[8,1,8,5]]}
[null,"ООО \"ЛЕНРЕМСТРОЙ\"",null,"Утверждаю:"]
[null,null,null,"Генеральный директор"]
[]
[null,null,null,"_________________    Сафронов П.А."]
[]
[]
[]
[null,"АКТ о проведении ремонта а/м с  использованием запчастей"]
[null,"за Апрель 2017г."]
[]
[null,null,"Экскаватор \"Комацу\" РС220-8 (ЭО4227)  "]
[]
[null,"№","Наименование","Ед.изм.","Кол-во","Причина списания"]
[null,1]
[null,2]
[null,3]
[null,4]
[null,5]
[]
[]
[null,null,"Гл. механик    ________________________  /Иванов А.В./"]

{"sheet":"САТ 320","index":17,"n_rows":17,"n_cols":6,"rows_kept":17,"cut":false,"hidden":false,"merged":[[7,1,7,5],[8,1,8,5]]}
[null,"ООО \"ЛЕНРЕМСТРОЙ\"",null,"Утверждаю:"]
[null,null,null,"Генеральный директор"]
[]
[null,null,null,"_________________    Сафронов П.А."]
[]
[]
[]
[null,"АКТ о проведении ремонта а/м с  использованием запчастей"]
[null,"за Апрель 2017г."]
[]
[null,null,"Экскаватор САТ 320 DL  1527 РА 78"]
[]
[null,"№","Наименование","Ед.изм.","Кол-во","Причина списания"]
[null,1,"Стекло лобовое САТ320","шт",1,"Замена"]
[]
[]
[null,null,"Гл. механик    ________________________  /Иванов А.В./"]

{"sheet":"САТ 315","index":18,"n_rows":17,"n_cols":6,"rows_kept":17,"cut":false,"hidden":false,"merged":[[7,1,7,5],[8,1,8,5]]}
[null,"ООО \"ЛЕНРЕМСТРОЙ\"",null,"Утверждаю:"]
[null,null,null,"Генеральный директор"]
[]
[null,null,null,"_________________    Сафронов П.А."]
[]
[]
[]
[null,"АКТ о проведении ремонта а/м с  использованием запчастей"]
[null,"за Апрель 2017г."]
[]
[null,null,"Экскаватор CAT M315D 1528 РА 78"]
[]
[null,"№","Наименование","Ед.изм.","Кол-во","Причина списания"]
[null,1,"Тяга","шт",2,"Замена"]
[]
[]
[null,null,"Гл. механик    ________________________  /Иванов А.В./"]

{"sheet":"САТ 924","index":19,"n_rows":21,"n_cols":6,"rows_kept":21,"cut":false,"hidden":false,"merged":[[7,1,7,5],[8,1,8,5]]}
[null,"ООО \"ЛЕНРЕМСТРОЙ\"",null,"Утверждаю:"]
[null,null,null,"Генеральный директор"]
[]
[null,null,null,"_________________    Сафронов П.А."]
[]
[]
[]
[null,"АКТ о проведении ремонта а/м с  использованием запчастей"]
[null,"за Апрель 2017г."]
[]
[null,null,"Погрузчик фронтальный САТ 924Hz "]
[]
[null,"№","Наименование","Ед.изм.","Кол-во","Причина списания"]
[null,1]
[null,2]
[null,3]
[null,4]
[null,5]
[]
[]
[null,null,"Гл. механик    ________________________  /Иванов А.В./"]

{"sheet":"UAZ легк. (3)","index":20,"n_rows":19,"n_cols":6,"rows_kept":19,"cut":false,"hidden":false,"merged":[[7,1,7,5],[8,1,8,5]]}
[null,"ООО \"ЛЕНРЕМСТРОЙ\"",null,"Утверждаю:"]
[null,null,null,"Генеральный директор"]
[]
[null,null,null,"_________________    Сафронов П.А."]
[]
[]
[]
[null,"АКТ о проведении ремонта а/м с  использованием запчастей"]
[null,"за Апрель 2017г."]
[]
[null,null,"UAZ Patriot (легковой) Х 503 ВР 178 (3)"]
[]
[null,"№","Наименование","Ед.изм.","Кол-во","Причина списания"]
[null,1,"Герметик ","шт",1]
[null,2,"Масло моторное","л",2]
[null,3,"Ремень","шт",1]
[]
[]
[null,null,"Гл. механик    ________________________  /Иванов А.В./"]